[Event "Late-Titled-Tuesday-Blitz-January-16-2024"]
[Site "Chess.com"]
[Date "2024.01.16"]
[Round "5"]
[White "GMAkobianSTL"]
[Black "K_A_S_T_O_R"]
[Result "1/2-1/2"]
[WhiteElo "2708"]
[BlackElo "2915"]
[TimeControl "180+1"]
[EndTime "14:52:39 PST"]
[Termination "Game drawn by repetition"]

1. d4 {[%clk 0:03:00.9]} 1... Nf6 {[%clk 0:02:58.7]} 2. c4 {[%clk 0:02:59.7]}
2... e6 {[%clk 0:02:58.7]} 3. Nf3 {[%clk 0:02:59.6]} 3... c5 {[%clk 0:02:58.7]}
4. d5 {[%clk 0:02:59.3]} 4... d6 {[%clk 0:02:58.1]} 5. Nc3 {[%clk 0:02:58.8]}
5... exd5 {[%clk 0:02:58.6]} 6. cxd5 {[%clk 0:02:58.7]} 6... g6 {[%clk 0:02:59]}
7. Bf4 {[%clk 0:02:58.8]} 7... Bg7 {[%clk 0:02:57.8]} 8. Qa4+ {[%clk 0:02:58.4]}
8... Bd7 {[%clk 0:02:58.1]} 9. Qb3 {[%clk 0:02:58.6]} 9... O-O {[%clk
0:02:57.9]} 10. e3 {[%clk 0:02:56.8]} 10... Qc7 {[%clk 0:02:56.9]} 11. h3 {[%clk
0:02:44.7]} 11... Na6 {[%clk 0:02:47.3]} 12. Nd2 {[%clk 0:02:39.9]} 12... Ne8
{[%clk 0:02:12.4]} 13. Bb5 {[%clk 0:02:33.5]} 13... Nb4 {[%clk 0:02:02.4]} 14.
O-O {[%clk 0:02:04.5]} 14... Bxc3 {[%clk 0:01:56.2]} 15. bxc3 {[%clk 0:01:58.5]}
15... Bxb5 {[%clk 0:01:55.2]} 16. Rfc1 {[%clk 0:01:34.1]} 16... Nd3 {[%clk
0:01:41.1]} 17. Qxb5 {[%clk 0:01:33.2]} 17... Nxf4 {[%clk 0:01:32.1]} 18. exf4
{[%clk 0:01:31.6]} 18... Nf6 {[%clk 0:01:32.5]} 19. Qd3 {[%clk 0:01:26.4]} 19...
Rfe8 {[%clk 0:01:32.1]} 20. c4 {[%clk 0:01:25.5]} 20... a6 {[%clk 0:01:30.5]}
21. Qc3 {[%clk 0:01:10.8]} 21... Ne4 {[%clk 0:01:27.3]} 22. Nxe4 {[%clk
0:01:09.3]} 22... Rxe4 {[%clk 0:01:27.8]} 23. f5 {[%clk 0:01:00.4]} 23... Rae8
{[%clk 0:01:23]} 24. a4 {[%clk 0:00:49.3]} 24... Qe7 {[%clk 0:01:18.7]} 25. f6
{[%clk 0:00:45]} 25... Qd7 {[%clk 0:01:16.5]} 26. Re1 {[%clk 0:00:38.3]} 26...
Qd8 {[%clk 0:01:04]} 27. Rxe4 {[%clk 0:00:33.8]} 27... Rxe4 {[%clk 0:01:04.4]}
28. Rb1 {[%clk 0:00:31.6]} 28... Re5 {[%clk 0:00:57.8]} 29. f4 {[%clk
0:00:20.7]} 29... Rf5 {[%clk 0:00:53.4]} 30. g3 {[%clk 0:00:20.5]} 30... b6
{[%clk 0:00:48.7]} 31. h4 {[%clk 0:00:19.8]} 31... h5 {[%clk 0:00:48.3]} 32. Kf2
{[%clk 0:00:19.3]} 32... Rxf6 {[%clk 0:00:47.2]} 33. Qb2 {[%clk 0:00:18.3]}
33... Qe7 {[%clk 0:00:43.8]} 34. Re1 {[%clk 0:00:17.6]} 34... Qd8 {[%clk
0:00:42.6]} 35. Rb1 {[%clk 0:00:17.1]} 35... Qe7 {[%clk 0:00:34.6]} 36. Re1
{[%clk 0:00:16.6]} 36... Qd8 {[%clk 0:00:34.8]} 37. Rb1 {[%clk 0:00:15.5]}
1/2-1/2

[Event "Late-Titled-Tuesday-Blitz-January-16-2024"]
[Site "Chess.com"]
[Date "2024.01.16"]
[Round "5"]
[White "Filipets"]
[Black "AlexLongson"]
[Result "1-0"]
[WhiteElo "2569"]
[BlackElo "2347"]
[TimeControl "180+1"]
[EndTime "14:52:44 PST"]
[Termination "Filipets won on time"]

1. c4 {[%clk 0:02:55.5]} 1... e6 {[%clk 0:02:59.7]} 2. Nf3 {[%clk 0:02:55.7]}
2... d5 {[%clk 0:03:00]} 3. g3 {[%clk 0:02:56.6]} 3... dxc4 {[%clk 0:02:57.9]}
4. Bg2 {[%clk 0:02:57.5]} 4... Nf6 {[%clk 0:02:54.5]} 5. O-O {[%clk 0:02:58.4]}
5... c5 {[%clk 0:02:54.1]} 6. Na3 {[%clk 0:02:57.1]} 6... Nc6 {[%clk 0:02:52.1]}
7. Nxc4 {[%clk 0:02:56]} 7... Be7 {[%clk 0:02:52.1]} 8. b3 {[%clk 0:02:54.2]}
8... O-O {[%clk 0:02:51.6]} 9. Bb2 {[%clk 0:02:54.5]} 9... Bd7 {[%clk
0:02:42.9]} 10. Nce5 {[%clk 0:02:51.1]} 10... Rc8 {[%clk 0:02:39]} 11. Rc1
{[%clk 0:02:42.6]} 11... Nd5 {[%clk 0:02:30.6]} 12. Nxd7 {[%clk 0:02:33.2]}
12... Qxd7 {[%clk 0:02:30.2]} 13. d4 {[%clk 0:02:29.5]} 13... cxd4 {[%clk
0:02:16.9]} 14. Nxd4 {[%clk 0:02:28]} 14... Nxd4 {[%clk 0:02:16.8]} 15. Qxd4
{[%clk 0:02:26]} 15... Bf6 {[%clk 0:02:07.7]} 16. Qd2 {[%clk 0:02:25.1]} 16...
Bxb2 {[%clk 0:02:01.3]} 17. Qxb2 {[%clk 0:02:26]} 17... Qb5 {[%clk 0:01:49.8]}
18. Qd4 {[%clk 0:02:14.7]} 18... Qxe2 {[%clk 0:01:24.2]} 19. Rxc8 {[%clk
0:02:01.7]} 19... Rxc8 {[%clk 0:01:22.9]} 20. Qxa7 {[%clk 0:02:01.8]} 20... b5
{[%clk 0:01:11.6]} 21. Qb7 {[%clk 0:01:31.8]} 21... Rd8 {[%clk 0:01:00.2]} 22.
a4 {[%clk 0:01:30.2]} 22... bxa4 {[%clk 0:00:39.2]} 23. bxa4 {[%clk 0:01:31.1]}
23... Qa2 {[%clk 0:00:32.6]} 24. Bxd5 {[%clk 0:01:01.2]} 24... exd5 {[%clk
0:00:24]} 25. Re1 {[%clk 0:00:40.2]} 25... Qxa4 {[%clk 0:00:20.2]} 26. Re7
{[%clk 0:00:35.5]} 26... Qa1+ {[%clk 0:00:13.1]} 27. Kg2 {[%clk 0:00:34.7]}
27... Qf6 {[%clk 0:00:12.3]} 28. Qc7 {[%clk 0:00:32.2]} 28... Rf8 {[%clk
0:00:11.2]} 29. Qd7 {[%clk 0:00:24.6]} 29... Qf5 {[%clk 0:00:10.6]} 30. Qxf5
{[%clk 0:00:24]} 1-0

[Event "Late-Titled-Tuesday-Blitz-January-16-2024"]
[Site "Chess.com"]
[Date "2024.01.16"]
[Round "5"]
[White "Nick12772"]
[Black "th3d4rkness"]
[Result "1-0"]
[WhiteElo "2339"]
[BlackElo "2101"]
[TimeControl "180+1"]
[EndTime "14:52:45 PST"]
[Termination "Nick12772 won by resignation"]

1. Nf3 {[%clk 0:03:00.9]} 1... Nf6 {[%clk 0:02:59.5]} 2. g3 {[%clk 0:03:01.1]}
2... g6 {[%clk 0:02:59.5]} 3. Bg2 {[%clk 0:03:01.6]} 3... Bg7 {[%clk 0:03:00.1]}
4. O-O {[%clk 0:03:02.2]} 4... O-O {[%clk 0:03:00.5]} 5. c4 {[%clk 0:03:03.1]}
5... d6 {[%clk 0:03:00.6]} 6. Nc3 {[%clk 0:03:03.7]} 6... c5 {[%clk 0:03:01.1]}
7. d3 {[%clk 0:03:04.1]} 7... Nc6 {[%clk 0:03:01.6]} 8. Rb1 {[%clk 0:03:04.2]}
8... Bd7 {[%clk 0:02:57]} 9. a3 {[%clk 0:03:04.2]} 9... a5 {[%clk 0:02:56.5]}
10. Ne1 {[%clk 0:03:03.7]} 10... Rc8 {[%clk 0:02:48.7]} 11. Nc2 {[%clk
0:03:03.7]} 11... b6 {[%clk 0:02:39.3]} 12. b4 {[%clk 0:03:02.2]} 12... axb4
{[%clk 0:02:39.2]} 13. axb4 {[%clk 0:03:03.1]} 13... Nd4 {[%clk 0:02:36]} 14. e3
{[%clk 0:02:35.3]} 14... Nxc2 {[%clk 0:02:31.2]} 15. Qxc2 {[%clk 0:02:36.2]}
15... Bc6 {[%clk 0:02:31.4]} 16. e4 {[%clk 0:02:26]} 16... Ng4 {[%clk
0:02:28.2]} 17. b5 {[%clk 0:02:16.2]} 17... Bb7 {[%clk 0:02:25.4]} 18. Bh3
{[%clk 0:02:10.6]} 18... f5 {[%clk 0:02:22.9]} 19. exf5 {[%clk 0:02:00.5]} 19...
gxf5 {[%clk 0:02:22.7]} 20. Bg2 {[%clk 0:01:30.5]} 20... Bxg2 {[%clk 0:02:18.1]}
21. Kxg2 {[%clk 0:01:31.4]} 21... Qd7 {[%clk 0:02:14]} 22. Nd5 {[%clk 0:01:28]}
22... e6 {[%clk 0:02:10.2]} 23. Nf4 {[%clk 0:01:17.6]} 23... Be5 {[%clk
0:01:55.1]} 24. f3 {[%clk 0:01:15.8]} 24... Bxf4 {[%clk 0:01:47]} 25. Bxf4
{[%clk 0:01:12.1]} 25... Nf6 {[%clk 0:01:41.3]} 26. Ra1 {[%clk 0:01:07]} 26...
Ra8 {[%clk 0:01:40.2]} 27. Qe2 {[%clk 0:01:03.3]} 27... e5 {[%clk 0:01:37.3]}
28. Bh6 {[%clk 0:00:58.8]} 28... Rfe8 {[%clk 0:01:34.7]} 29. Bg5 {[%clk
0:00:58]} 29... Qe6 {[%clk 0:01:28.5]} 30. Qb2 {[%clk 0:00:47.7]} 30... Nd7
{[%clk 0:01:16.6]} 31. Rxa8 {[%clk 0:00:45.6]} 31... Rxa8 {[%clk 0:01:16.2]} 32.
Ra1 {[%clk 0:00:46.4]} 32... Qe8 {[%clk 0:01:13.8]} 33. Ra6 {[%clk 0:00:37.4]}
33... Rxa6 {[%clk 0:01:07.8]} 34. bxa6 {[%clk 0:00:38.3]} 34... Qb8 {[%clk
0:01:06.8]} 35. Qb5 {[%clk 0:00:34.6]} 35... Qc7 {[%clk 0:01:02.7]} 36. Bh6
{[%clk 0:00:26.6]} 36... Kf7 {[%clk 0:01:02.3]} 37. Qa4 {[%clk 0:00:22.7]} 37...
Qa7 {[%clk 0:00:59.2]} 38. Qc6 {[%clk 0:00:22.6]} 38... Ke6 {[%clk 0:00:52.7]}
39. Qd5+ {[%clk 0:00:21.7]} 39... Ke7 {[%clk 0:00:50.5]} 40. Bg5+ {[%clk
0:00:21.7]} 40... Ke8 {[%clk 0:00:39.9]} 41. Qe6+ {[%clk 0:00:14.6]} 1-0

[Event "Late-Titled-Tuesday-Blitz-January-16-2024"]
[Site "Chess.com"]
[Date "2024.01.16"]
[Round "5"]
[White "Zhigalko_Sergei"]
[Black "mishanick"]
[Result "0-1"]
[WhiteElo "2971"]
[BlackElo "3092"]
[TimeControl "180+1"]
[EndTime "14:52:47 PST"]
[Termination "mishanick won on time"]

1. e4 {[%clk 0:03:00.9]} 1... c5 {[%clk 0:03:00.4]} 2. Nf3 {[%clk 0:03:00.6]}
2... e6 {[%clk 0:03:00.9]} 3. c3 {[%clk 0:02:59.3]} 3... d5 {[%clk 0:03:01.4]}
4. e5 {[%clk 0:02:57.2]} 4... d4 {[%clk 0:03:00.5]} 5. Bd3 {[%clk 0:02:56.9]}
5... Bd7 {[%clk 0:02:51.2]} 6. O-O {[%clk 0:02:52.9]} 6... Bc6 {[%clk
0:02:50.4]} 7. Na3 {[%clk 0:02:50.9]} 7... Ne7 {[%clk 0:02:49.6]} 8. cxd4 {[%clk
0:02:37.5]} 8... cxd4 {[%clk 0:02:48.8]} 9. Nc2 {[%clk 0:02:37.4]} 9... Ng6
{[%clk 0:02:26.8]} 10. Ncxd4 {[%clk 0:01:53.3]} 10... Nxe5 {[%clk 0:02:25.8]}
11. Nxc6 {[%clk 0:01:45.9]} 11... Nexc6 {[%clk 0:02:07.1]} 12. Be4 {[%clk
0:01:46.1]} 12... Be7 {[%clk 0:01:49.4]} 13. d4 {[%clk 0:01:46.2]} 13... O-O
{[%clk 0:01:49.6]} 14. Be3 {[%clk 0:01:19]} 14... Bf6 {[%clk 0:01:48.3]} 15. Rc1
{[%clk 0:01:18.8]} 15... h6 {[%clk 0:01:45.4]} 16. Bb1 {[%clk 0:01:06]} 16...
Nb4 {[%clk 0:01:17.4]} 17. a3 {[%clk 0:01:00.6]} 17... Nd5 {[%clk 0:01:17.7]}
18. Qd3 {[%clk 0:00:59.6]} 18... Re8 {[%clk 0:01:18.1]} 19. Ne5 {[%clk
0:00:41.8]} 19... Nd7 {[%clk 0:01:09.2]} 20. Ng4 {[%clk 0:00:30.5]} 20... Kf8
{[%clk 0:01:00.7]} 21. Qh7 {[%clk 0:00:22.8]} 21... Qb6 {[%clk 0:00:49.8]} 22.
Rfe1 {[%clk 0:00:15.9]} 22... Qxb2 {[%clk 0:00:36.5]} 23. Bxh6 {[%clk
0:00:11.8]} 23... Qxd4 {[%clk 0:00:32.4]} 24. Re4 {[%clk 0:00:07.5]} 24... Qb2
{[%clk 0:00:32.5]} 25. Rce1 {[%clk 0:00:03.3]} 25... Ke7 {[%clk 0:00:17.8]} 26.
Bxg7 {[%clk 0:00:02.4]} 26... Bxg7 {[%clk 0:00:16.9]} 27. Qxg7 {[%clk
0:00:03.3]} 27... Qxg7 {[%clk 0:00:16.8]} 0-1

[Event "Late-Titled-Tuesday-Blitz-January-16-2024"]
[Site "Chess.com"]
[Date "2024.01.16"]
[Round "5"]
[White "Lion-Al-Messi"]
[Black "Redzishchess"]
[Result "1-0"]
[WhiteElo "2608"]
[BlackElo "2456"]
[TimeControl "180+1"]
[EndTime "14:52:48 PST"]
[Termination "Lion-Al-Messi won by resignation"]

1. e4 {[%clk 0:03:00.9]} 1... c5 {[%clk 0:02:52.3]} 2. Nf3 {[%clk 0:03:01.4]}
2... d6 {[%clk 0:02:52]} 3. d4 {[%clk 0:03:01.7]} 3... cxd4 {[%clk 0:02:52.9]}
4. Nxd4 {[%clk 0:03:02.2]} 4... Nf6 {[%clk 0:02:53.2]} 5. Nc3 {[%clk 0:03:02.4]}
5... g6 {[%clk 0:02:53.7]} 6. Be2 {[%clk 0:03:01.9]} 6... Bg7 {[%clk 0:02:53.9]}
7. O-O {[%clk 0:03:02.6]} 7... O-O {[%clk 0:02:54.5]} 8. Be3 {[%clk 0:03:03.2]}
8... Nc6 {[%clk 0:02:55.1]} 9. h3 {[%clk 0:03:03.8]} 9... d5 {[%clk 0:02:55.5]}
10. exd5 {[%clk 0:03:03.5]} 10... Nxd5 {[%clk 0:02:56.4]} 11. Nxd5 {[%clk
0:03:03.8]} 11... Nxd4 {[%clk 0:02:56.1]} 12. Bxd4 {[%clk 0:03:03.9]} 12... Qxd5
{[%clk 0:02:51.7]} 13. Bxg7 {[%clk 0:03:03.9]} 13... Qxd1 {[%clk 0:02:50.6]} 14.
Raxd1 {[%clk 0:03:04.8]} 14... Kxg7 {[%clk 0:02:51.1]} 15. Rfe1 {[%clk
0:03:05.3]} 15... Bf5 {[%clk 0:02:37]} 16. Bf3 {[%clk 0:03:03.9]} 16... Be6
{[%clk 0:02:05.4]} 17. Bd5 {[%clk 0:03:00.6]} 17... Bxd5 {[%clk 0:01:32.5]} 18.
Rxd5 {[%clk 0:03:01.5]} 18... e6 {[%clk 0:01:32.9]} 19. Rd7 {[%clk 0:03:01.4]}
19... Rab8 {[%clk 0:01:33.3]} 20. Red1 {[%clk 0:02:54.5]} 20... Rfc8 {[%clk
0:01:31.7]} 21. c3 {[%clk 0:02:54.4]} 21... Kf6 {[%clk 0:01:28.1]} 22. R1d3
{[%clk 0:02:54.2]} 22... Rf8 {[%clk 0:01:25.2]} 23. Rc7 {[%clk 0:02:50.7]} 23...
a5 {[%clk 0:01:10.4]} 24. Rdd7 {[%clk 0:02:31.5]} 24... b5 {[%clk 0:01:06.5]}
25. Rb7 {[%clk 0:02:30.6]} 25... b4 {[%clk 0:00:39]} 26. cxb4 {[%clk 0:02:28.5]}
26... axb4 {[%clk 0:00:34.7]} 27. Rxf7+ {[%clk 0:02:27.9]} 27... Rxf7 {[%clk
0:00:35.6]} 28. Rxb8 {[%clk 0:02:28.1]} 28... Ra7 {[%clk 0:00:36.2]} 29. Rxb4
{[%clk 0:02:26.8]} 29... Rxa2 {[%clk 0:00:36.6]} 30. Rb7 {[%clk 0:02:25.8]}
30... Ra1+ {[%clk 0:00:31.8]} 31. Kh2 {[%clk 0:02:25.8]} 31... Rb1 {[%clk
0:00:32.5]} 32. h4 {[%clk 0:02:23.2]} 32... h5 {[%clk 0:00:30.5]} 33. b4 {[%clk
0:02:20.4]} 33... Kf5 {[%clk 0:00:20.7]} 34. b5 {[%clk 0:02:20]} 34... Kg4
{[%clk 0:00:16.8]} 35. g3 {[%clk 0:02:04.8]} 35... Rb2 {[%clk 0:00:16.9]} 36.
Kg2 {[%clk 0:02:04]} 36... e5 {[%clk 0:00:17.5]} 37. b6 {[%clk 0:02:00.5]} 37...
e4 {[%clk 0:00:17.6]} 38. Rf7 {[%clk 0:02:01.1]} 38... g5 {[%clk 0:00:14.7]} 39.
Rg7 {[%clk 0:01:56.8]} 39... Kf5 {[%clk 0:00:06.2]} 40. Rxg5+ {[%clk 0:01:56.5]}
40... Kf6 {[%clk 0:00:06.8]} 41. Kg1 {[%clk 0:01:45]} 41... Rb1+ {[%clk
0:00:04.4]} 42. Kg2 {[%clk 0:01:42.9]} 42... Rb2 {[%clk 0:00:03.6]} 43. Kf1
{[%clk 0:01:43.4]} 43... Rb1+ {[%clk 0:00:03.7]} 44. Ke2 {[%clk 0:01:43.6]}
44... Rxb6 {[%clk 0:00:03.3]} 45. Rxh5 {[%clk 0:01:43.5]} 45... Rb3 {[%clk
0:00:03.1]} 46. Rh8 {[%clk 0:01:40.7]} 46... Kg6 {[%clk 0:00:03]} 47. Rg8+
{[%clk 0:01:39.9]} 47... Kf5 {[%clk 0:00:03.4]} 48. Rf8+ {[%clk 0:01:40.1]}
48... Ke5 {[%clk 0:00:04]} 49. Re8+ {[%clk 0:01:40.4]} 49... Kf5 {[%clk
0:00:04.5]} 50. h5 {[%clk 0:01:38.2]} 50... Kg5 {[%clk 0:00:04.4]} 51. Rxe4
{[%clk 0:01:37.2]} 51... Kxh5 {[%clk 0:00:04.9]} 52. Re3 {[%clk 0:01:37.5]}
52... Rb2+ {[%clk 0:00:04.6]} 53. Kf3 {[%clk 0:01:37.3]} 53... Kg5 {[%clk
0:00:05.5]} 54. Re5+ {[%clk 0:01:37.3]} 54... Kf6 {[%clk 0:00:05.8]} 55. Ra5
{[%clk 0:01:38.2]} 55... Rb3+ {[%clk 0:00:06]} 56. Kg4 {[%clk 0:01:38.2]} 56...
Rb4+ {[%clk 0:00:06.6]} 57. f4 {[%clk 0:01:38.5]} 57... Rb3 {[%clk 0:00:07.5]}
58. Ra6+ {[%clk 0:01:38.8]} 58... Kg7 {[%clk 0:00:08.4]} 59. Kh4 {[%clk
0:01:38.9]} 59... Kh7 {[%clk 0:00:07.8]} 60. g4 {[%clk 0:01:38.5]} 60... Rf3
{[%clk 0:00:08.4]} 61. f5 {[%clk 0:01:38.7]} 61... Rf2 {[%clk 0:00:08.8]} 62.
Kg5 {[%clk 0:01:39]} 62... Kg8 {[%clk 0:00:08.6]} 63. Ra8+ {[%clk 0:01:39]}
63... Kf7 {[%clk 0:00:08.5]} 64. Ra7+ {[%clk 0:01:39.9]} 64... Kg8 {[%clk
0:00:08.8]} 65. Kg6 {[%clk 0:01:40.3]} 65... Kf8 {[%clk 0:00:09.4]} 66. f6
{[%clk 0:01:40.4]} 66... Re2 {[%clk 0:00:08.6]} 67. Ra8+ {[%clk 0:01:40]} 67...
Re8 {[%clk 0:00:09.5]} 68. Rxe8+ {[%clk 0:01:40.3]} 68... Kxe8 {[%clk
0:00:10.4]} 69. Kg7 {[%clk 0:01:40.8]} 1-0

[Event "Late-Titled-Tuesday-Blitz-January-16-2024"]
[Site "Chess.com"]
[Date "2024.01.16"]
[Round "5"]
[White "Elsa167"]
[Black "djano"]
[Result "1-0"]
[WhiteElo "2857"]
[BlackElo "2639"]
[TimeControl "180+1"]
[EndTime "14:53:00 PST"]
[Termination "Elsa167 won by resignation"]

1. d4 {[%clk 0:03:00.9]} 1... d5 {[%clk 0:02:57.9]} 2. c4 {[%clk 0:03:01.4]}
2... e6 {[%clk 0:02:57.7]} 3. Nf3 {[%clk 0:03:01.4]} 3... c5 {[%clk 0:02:57.6]}
4. e3 {[%clk 0:02:57.8]} 4... Nf6 {[%clk 0:02:57.1]} 5. a3 {[%clk 0:02:57]} 5...
Nc6 {[%clk 0:02:54.5]} 6. dxc5 {[%clk 0:02:56.8]} 6... Bxc5 {[%clk 0:02:54.7]}
7. b4 {[%clk 0:02:57.1]} 7... Bd6 {[%clk 0:02:55.1]} 8. Bb2 {[%clk 0:02:56.4]}
8... O-O {[%clk 0:02:52.5]} 9. Nbd2 {[%clk 0:02:56.3]} 9... Qe7 {[%clk
0:02:41.7]} 10. Be2 {[%clk 0:02:51.8]} 10... a5 {[%clk 0:02:30.4]} 11. b5 {[%clk
0:02:32.4]} 11... Nb8 {[%clk 0:02:28.7]} 12. cxd5 {[%clk 0:02:22.1]} 12... exd5
{[%clk 0:02:27.9]} 13. Nd4 {[%clk 0:02:11.3]} 13... Ne4 {[%clk 0:02:15.3]} 14.
Nxe4 {[%clk 0:02:01.7]} 14... dxe4 {[%clk 0:02:16.2]} 15. O-O {[%clk 0:01:56.5]}
15... Qh4 {[%clk 0:02:11.9]} 16. g3 {[%clk 0:01:55.7]} 16... Qe7 {[%clk
0:02:07.6]} 17. Rc1 {[%clk 0:01:52.5]} 17... Bh3 {[%clk 0:02:06]} 18. Re1 {[%clk
0:01:37.7]} 18... Nd7 {[%clk 0:02:04.1]} 19. Bg4 {[%clk 0:01:35.7]} 19... Bxg4
{[%clk 0:01:59.1]} 20. Qxg4 {[%clk 0:01:36.6]} 20... Nf6 {[%clk 0:01:32.4]} 21.
Qh4 {[%clk 0:01:01.5]} 21... Qe5 {[%clk 0:01:14.5]} 22. Rc2 {[%clk 0:00:53.5]}
22... Qd5 {[%clk 0:01:05.2]} 23. Rd2 {[%clk 0:00:34.1]} 23... Rfe8 {[%clk
0:00:29.3]} 24. Red1 {[%clk 0:00:33.4]} 24... Bf8 {[%clk 0:00:15.3]} 25. Ne2
{[%clk 0:00:24.3]} 25... Qxb5 {[%clk 0:00:13.5]} 26. Bxf6 {[%clk 0:00:23.9]}
26... gxf6 {[%clk 0:00:14.4]} 27. Qxf6 {[%clk 0:00:15.6]} 27... Ra6 {[%clk
0:00:15]} 28. Qh4 {[%clk 0:00:13]} 28... Rae6 {[%clk 0:00:10.8]} 29. Nd4 {[%clk
0:00:12.7]} 29... Qe5 {[%clk 0:00:09.9]} 30. Nxe6 {[%clk 0:00:13.1]} 30... Qxe6
{[%clk 0:00:10.8]} 31. Rd8 {[%clk 0:00:10.9]} 31... b5 {[%clk 0:00:10.2]} 32.
Qg5+ {[%clk 0:00:09.5]} 32... Kh8 {[%clk 0:00:10.4]} 33. Rxe8 {[%clk 0:00:09.8]}
33... Qxe8 {[%clk 0:00:10.8]} 34. Rd8 {[%clk 0:00:10.4]} 1-0

[Event "Late-Titled-Tuesday-Blitz-January-16-2024"]
[Site "Chess.com"]
[Date "2024.01.16"]
[Round "5"]
[White "JM2005GM"]
[Black "GrotBchess"]
[Result "0-1"]
[WhiteElo "2544"]
[BlackElo "2334"]
[TimeControl "180+1"]
[EndTime "14:53:04 PST"]
[Termination "GrotBchess won by resignation"]

1. e4 {[%clk 0:03:00.9]} 1... c5 {[%clk 0:02:59.2]} 2. Nf3 {[%clk 0:02:57.3]}
2... e6 {[%clk 0:02:59.2]} 3. d4 {[%clk 0:02:56.8]} 3... cxd4 {[%clk 0:02:59.8]}
4. Nxd4 {[%clk 0:02:57.7]} 4... Nc6 {[%clk 0:03:00.2]} 5. Nc3 {[%clk 0:02:56.8]}
5... Qc7 {[%clk 0:03:00.3]} 6. a3 {[%clk 0:02:56.9]} 6... a6 {[%clk 0:02:59.2]}
7. Be3 {[%clk 0:02:57.5]} 7... Nf6 {[%clk 0:02:58.3]} 8. f4 {[%clk 0:02:57.1]}
8... d6 {[%clk 0:02:58]} 9. Qf3 {[%clk 0:02:56.3]} 9... Nxd4 {[%clk 0:02:58]}
10. Bxd4 {[%clk 0:02:56.6]} 10... b5 {[%clk 0:02:58.5]} 11. O-O-O {[%clk
0:02:54.8]} 11... Bb7 {[%clk 0:02:58]} 12. Bd3 {[%clk 0:02:48.7]} 12... Rc8
{[%clk 0:02:57.4]} 13. Kb1 {[%clk 0:02:47]} 13... Be7 {[%clk 0:02:49.5]} 14. g4
{[%clk 0:02:45.7]} 14... Rg8 {[%clk 0:02:38.2]} 15. g5 {[%clk 0:02:45.1]} 15...
Nd7 {[%clk 0:02:38.2]} 16. Qh5 {[%clk 0:02:43.3]} 16... Nf8 {[%clk 0:02:30.6]}
17. Rhf1 {[%clk 0:02:34.8]} 17... h6 {[%clk 0:02:13.2]} 18. gxh6 {[%clk
0:02:24.2]} 18... gxh6 {[%clk 0:02:12.7]} 19. Qxh6 {[%clk 0:02:25.1]} 19... Rg2
{[%clk 0:02:09.2]} 20. Qh3 {[%clk 0:02:17.8]} 20... Rg8 {[%clk 0:02:06.9]} 21.
Rg1 {[%clk 0:02:16.1]} 21... Rxg1 {[%clk 0:02:05.1]} 22. Rxg1 {[%clk 0:02:17]}
22... e5 {[%clk 0:02:04.6]} 23. Be3 {[%clk 0:02:01.2]} 23... exf4 {[%clk
0:01:43.8]} 24. Bxf4 {[%clk 0:02:00.3]} 24... Ng6 {[%clk 0:01:43.3]} 25. Rxg6
{[%clk 0:01:23.9]} 25... fxg6 {[%clk 0:01:42.3]} 26. e5 {[%clk 0:01:24.6]} 26...
Qc5 {[%clk 0:01:14.4]} 27. exd6 {[%clk 0:01:01.6]} 27... Bxd6 {[%clk 0:01:08.5]}
28. Qe6+ {[%clk 0:01:01.4]} 28... Be7 {[%clk 0:01:08.2]} 29. Bxg6+ {[%clk
0:01:01.3]} 29... Kd8 {[%clk 0:01:05.9]} 30. Bf5 {[%clk 0:00:57.3]} 30... Rc7
{[%clk 0:00:28.1]} 31. Bxc7+ {[%clk 0:00:19.5]} 31... Kxc7 {[%clk 0:00:29]} 32.
Qd7+ {[%clk 0:00:19.7]} 32... Kb8 {[%clk 0:00:29]} 33. Qd2 {[%clk 0:00:15.9]}
33... Bf6 {[%clk 0:00:26.4]} 34. Ne4 {[%clk 0:00:13.5]} 34... Qxf5 {[%clk
0:00:25.8]} 35. Nd6 {[%clk 0:00:11.2]} 35... Qe5 {[%clk 0:00:23.5]} 36. c3
{[%clk 0:00:09]} 36... Bd5 {[%clk 0:00:20.9]} 0-1

[Event "Late-Titled-Tuesday-Blitz-January-16-2024"]
[Site "Chess.com"]
[Date "2024.01.16"]
[Round "5"]
[White "MrChessSponge"]
[Black "pr1105"]
[Result "1-0"]
[WhiteElo "2553"]
[BlackElo "2272"]
[TimeControl "180+1"]
[EndTime "14:53:04 PST"]
[Termination "MrChessSponge won by resignation"]

1. e4 {[%clk 0:02:58]} 1... e5 {[%clk 0:02:56.6]} 2. Nf3 {[%clk 0:02:56.8]} 2...
Nc6 {[%clk 0:02:57.1]} 3. Bc4 {[%clk 0:02:54.2]} 3... Bc5 {[%clk 0:02:56.4]} 4.
c3 {[%clk 0:02:53.6]} 4... Nf6 {[%clk 0:02:56.1]} 5. d3 {[%clk 0:02:53.3]} 5...
d6 {[%clk 0:02:56]} 6. a4 {[%clk 0:02:49.3]} 6... a5 {[%clk 0:02:56.5]} 7. O-O
{[%clk 0:02:46.9]} 7... O-O {[%clk 0:02:56.4]} 8. h3 {[%clk 0:02:46.3]} 8... h6
{[%clk 0:02:56.8]} 9. Re1 {[%clk 0:02:46.1]} 9... Ba7 {[%clk 0:02:56.4]} 10.
Nbd2 {[%clk 0:02:43.5]} 10... Be6 {[%clk 0:02:56.2]} 11. Bxe6 {[%clk 0:02:36]}
11... fxe6 {[%clk 0:02:57.1]} 12. Qb3 {[%clk 0:02:27.9]} 12... Qd7 {[%clk
0:02:54.2]} 13. Nc4 {[%clk 0:02:23.4]} 13... Rab8 {[%clk 0:02:39]} 14. Be3
{[%clk 0:02:23]} 14... Bxe3 {[%clk 0:02:36.8]} 15. fxe3 {[%clk 0:02:17.9]} 15...
b6 {[%clk 0:02:36.2]} 16. Qb5 {[%clk 0:02:15.2]} 16... Ne7 {[%clk 0:02:25.1]}
17. Qxd7 {[%clk 0:02:10]} 17... Nxd7 {[%clk 0:02:25.4]} 18. d4 {[%clk
0:02:09.5]} 18... Ng6 {[%clk 0:02:13.4]} 19. h4 {[%clk 0:01:58.5]} 19... h5
{[%clk 0:01:46.1]} 20. Rf1 {[%clk 0:01:51.8]} 20... Rbe8 {[%clk 0:01:39.3]} 21.
g3 {[%clk 0:01:26.4]} 21... exd4 {[%clk 0:01:37.6]} 22. exd4 {[%clk 0:01:25.7]}
22... e5 {[%clk 0:01:37.2]} 23. Ng5 {[%clk 0:01:18.7]} 23... exd4 {[%clk
0:01:18.2]} 24. cxd4 {[%clk 0:01:15.8]} 24... Nf6 {[%clk 0:01:10.1]} 25. Rae1
{[%clk 0:01:04.3]} 25... d5 {[%clk 0:00:58.1]} 26. exd5 {[%clk 0:01:02.1]} 26...
Nxd5 {[%clk 0:00:59]} 27. Rxf8+ {[%clk 0:00:53.5]} 27... Kxf8 {[%clk 0:00:43.3]}
28. Ne5 {[%clk 0:00:50.6]} 28... Nxe5 {[%clk 0:00:41.1]} 29. dxe5 {[%clk
0:00:51.5]} 29... Ke7 {[%clk 0:00:38.1]} 30. Rc1 {[%clk 0:00:34]} 30... Kd7
{[%clk 0:00:24.6]} 31. e6+ {[%clk 0:00:26.9]} 31... Kd6 {[%clk 0:00:22.7]} 32.
Rf1 {[%clk 0:00:26.3]} 32... Re7 {[%clk 0:00:20.4]} 33. Rf8 {[%clk 0:00:26]}
33... c5 {[%clk 0:00:17.1]} 34. Rb8 {[%clk 0:00:23.8]} 34... c4 {[%clk
0:00:16.4]} 35. Rd8+ {[%clk 0:00:22.6]} 35... Kc5 {[%clk 0:00:16.7]} 36. Rd7
{[%clk 0:00:18.9]} 36... Kc6 {[%clk 0:00:14.1]} 37. Rd8 {[%clk 0:00:15.4]} 37...
Kc5 {[%clk 0:00:14.1]} 38. Kf2 {[%clk 0:00:15.6]} 38... Kb4 {[%clk 0:00:13.7]}
39. Rxd5 {[%clk 0:00:14.8]} 39... Kxa4 {[%clk 0:00:13.6]} 40. Ke3 {[%clk
0:00:15.3]} 1-0